[Event "Early-Titled-Tuesday-Blitz-May-14-2024"]
[Site "Chess.com"]
[Date "2024.05.14"]
[Round "4"]
[White "noblerone"]
[Black "mapleaff"]
[Result "1/2-1/2"]
[WhiteElo "2502"]
[BlackElo "2302"]
[TimeControl "180+1"]
[EndTime "8:42:35 PDT"]
[Termination "Game drawn - insufficient material"]

1. d4 {[%clk 0:03:00.9]} 1... Nf6 {[%clk 0:03:00.1]} 2. Nf3 {[%clk 0:03:01.1]}
2... d5 {[%clk 0:02:59.9]} 3. Bg5 {[%clk 0:02:59.5]} 3... c5 {[%clk 0:02:58.7]}
4. e3 {[%clk 0:02:59.1]} 4... cxd4 {[%clk 0:02:57.3]} 5. exd4 {[%clk 0:02:59.3]}
5... Nc6 {[%clk 0:02:57.3]} 6. c3 {[%clk 0:02:59.8]} 6... Bg4 {[%clk 0:02:55]}
7. Be2 {[%clk 0:02:56]} 7... e6 {[%clk 0:02:52.5]} 8. O-O {[%clk 0:02:46.2]}
8... Be7 {[%clk 0:02:48.3]} 9. Nbd2 {[%clk 0:02:42.3]} 9... O-O {[%clk
0:02:47.3]} 10. h3 {[%clk 0:02:22.6]} 10... Bh5 {[%clk 0:02:44.6]} 11. Re1
{[%clk 0:02:21.7]} 11... h6 {[%clk 0:02:40.9]} 12. Bh4 {[%clk 0:02:17.5]} 12...
Rc8 {[%clk 0:02:25.3]} 13. Ne5 {[%clk 0:02:05.3]} 13... Bxe2 {[%clk 0:02:12.4]}
14. Qxe2 {[%clk 0:02:06.2]} 14... Nd7 {[%clk 0:02:02.7]} 15. Bxe7 {[%clk
0:02:03.7]} 15... Qxe7 {[%clk 0:01:59.7]} 16. f4 {[%clk 0:01:59.2]} 16... Ndxe5
{[%clk 0:01:42.7]} 17. fxe5 {[%clk 0:01:57]} 17... f6 {[%clk 0:01:42.4]} 18.
exf6 {[%clk 0:01:50]} 18... Rxf6 {[%clk 0:01:43.3]} 19. Rf1 {[%clk 0:01:42.9]}
19... Rcf8 {[%clk 0:01:42.6]} 20. Rxf6 {[%clk 0:01:42.8]} 20... Rxf6 {[%clk
0:01:41.8]} 21. Re1 {[%clk 0:01:42.9]} 21... Qf7 {[%clk 0:01:17]} 22. Nf3 {[%clk
0:01:39.6]} 22... a6 {[%clk 0:01:12.8]} 23. a4 {[%clk 0:01:36.5]} 23... Qd7
{[%clk 0:01:08.6]} 24. b4 {[%clk 0:01:19.7]} 24... Ne7 {[%clk 0:00:45.7]} 25. b5
{[%clk 0:00:38.7]} 25... axb5 {[%clk 0:00:44.8]} 26. axb5 {[%clk 0:00:39.6]}
26... Ng6 {[%clk 0:00:39]} 27. b6 {[%clk 0:00:25.2]} 27... Qd6 {[%clk
0:00:38.5]} 28. Ne5 {[%clk 0:00:23.6]} 28... Nxe5 {[%clk 0:00:38.3]} 29. dxe5
{[%clk 0:00:23.5]} 29... Qxb6+ {[%clk 0:00:38.5]} 30. Kh1 {[%clk 0:00:24.3]}
30... Rf2 {[%clk 0:00:35]} 31. Qh5 {[%clk 0:00:20.7]} 31... Rf5 {[%clk
0:00:26.6]} 32. Qe8+ {[%clk 0:00:19.8]} 32... Kh7 {[%clk 0:00:27.2]} 33. Qa4
{[%clk 0:00:13.4]} 33... Qf2 {[%clk 0:00:26.6]} 34. Qd1 {[%clk 0:00:11.9]} 34...
Rg5 {[%clk 0:00:24.3]} 35. Rg1 {[%clk 0:00:11.8]} 35... Rxe5 {[%clk 0:00:22]}
36. Qb1+ {[%clk 0:00:11.5]} 36... Qf5 {[%clk 0:00:21.8]} 37. Qxb7 {[%clk
0:00:11.4]} 37... Re3 {[%clk 0:00:20.1]} 38. Qc7 {[%clk 0:00:12]} 38... Qe4
{[%clk 0:00:18.8]} 39. Qh2 {[%clk 0:00:10.7]} 39... Rxc3 {[%clk 0:00:18]} 40.
Rf1 {[%clk 0:00:10.5]} 40... Rc2 {[%clk 0:00:15.6]} 41. Rd1 {[%clk 0:00:09.4]}
41... d4 {[%clk 0:00:14.9]} 42. Qg3 {[%clk 0:00:09.9]} 42... d3 {[%clk 0:00:13]}
43. Rxd3 {[%clk 0:00:10.1]} 43... Rc1+ {[%clk 0:00:12.4]} 44. Kh2 {[%clk
0:00:10.8]} 44... Qe1 {[%clk 0:00:10.9]} 45. Qe3 {[%clk 0:00:11.4]} 45... Qxe3
{[%clk 0:00:10.8]} 46. Rxe3 {[%clk 0:00:11.3]} 46... Rc6 {[%clk 0:00:11.7]} 47.
Kg3 {[%clk 0:00:11.2]} 47... Kg6 {[%clk 0:00:12.3]} 48. Kf4 {[%clk 0:00:12.1]}
48... Kf6 {[%clk 0:00:12.8]} 49. Ke4 {[%clk 0:00:12.4]} 49... Rc4+ {[%clk
0:00:13]} 50. Kd3 {[%clk 0:00:12.3]} 50... Ra4 {[%clk 0:00:13.3]} 51. Rf3+
{[%clk 0:00:12.1]} 51... Ke7 {[%clk 0:00:13.6]} 52. Rf1 {[%clk 0:00:11.7]} 52...
g5 {[%clk 0:00:13.7]} 53. Ke3 {[%clk 0:00:11.5]} 53... Ra3+ {[%clk 0:00:13.1]}
54. Ke4 {[%clk 0:00:10.9]} 54... Rg3 {[%clk 0:00:13.3]} 55. Rf2 {[%clk
0:00:10.9]} 55... Rb3 {[%clk 0:00:13]} 56. Ra2 {[%clk 0:00:11.3]} 56... Rb4+
{[%clk 0:00:12.6]} 57. Ke5 {[%clk 0:00:11.2]} 57... Rb5+ {[%clk 0:00:13.1]} 58.
Ke4 {[%clk 0:00:11.9]} 58... Kf6 {[%clk 0:00:13.4]} 59. Rf2+ {[%clk 0:00:12.2]}
59... Kg6 {[%clk 0:00:13.1]} 60. Ra2 {[%clk 0:00:13.1]} 60... Rf5 {[%clk
0:00:11.9]} 61. Ra6 {[%clk 0:00:12.2]} 61... Kf6 {[%clk 0:00:12.1]} 62. Ra2
{[%clk 0:00:12.6]} 62... Rf4+ {[%clk 0:00:12.3]} 63. Ke3 {[%clk 0:00:13]} 63...
e5 {[%clk 0:00:12.5]} 64. Ra6+ {[%clk 0:00:13]} 64... Kg7 {[%clk 0:00:13]} 65.
Ra7+ {[%clk 0:00:13.5]} 65... Kg6 {[%clk 0:00:13.4]} 66. Ra6+ {[%clk 0:00:14.4]}
66... Kh5 {[%clk 0:00:13.4]} 67. Re6 {[%clk 0:00:10.2]} 67... Kh4 {[%clk
0:00:07.1]} 68. Rxh6+ {[%clk 0:00:09.6]} 68... Kg3 {[%clk 0:00:07.6]} 69. Rg6
{[%clk 0:00:09.7]} 69... Kxg2 {[%clk 0:00:07]} 70. Rxg5+ {[%clk 0:00:10.1]}
70... Kxh3 {[%clk 0:00:07.5]} 71. Rxe5 {[%clk 0:00:10.2]} 71... Rg4 {[%clk
0:00:07.5]} 72. Kf3 {[%clk 0:00:10]} 72... Rg3+ {[%clk 0:00:07.9]} 73. Kf2
{[%clk 0:00:10.2]} 73... Rg2+ {[%clk 0:00:07.8]} 74. Kf1 {[%clk 0:00:09.4]}
74... Rg4 {[%clk 0:00:08.3]} 75. Kf2 {[%clk 0:00:09.3]} 75... Rf4+ {[%clk
0:00:08]} 76. Ke3 {[%clk 0:00:09.5]} 76... Rg4 {[%clk 0:00:07.2]} 77. Re4 {[%clk
0:00:09.6]} 77... Rxe4+ {[%clk 0:00:07.1]} 78. Kxe4 {[%clk 0:00:10.5]} 1/2-1/2

[Event "Early-Titled-Tuesday-Blitz-May-14-2024"]
[Site "Chess.com"]
[Date "2024.05.14"]
[Round "4"]
[White "SirStrateg"]
[Black "MITerryble"]
[Result "0-1"]
[WhiteElo "2681"]
[BlackElo "3047"]
[TimeControl "180+1"]
[EndTime "8:42:36 PDT"]
[Termination "MITerryble won by resignation"]

1. d4 {[%clk 0:03:00.9]} 1... e6 {[%clk 0:03:00.3]} 2. Nf3 {[%clk 0:02:58.1]}
2... Nf6 {[%clk 0:03:00.4]} 3. Bg5 {[%clk 0:02:56.8]} 3... b6 {[%clk 0:02:59.9]}
4. e4 {[%clk 0:02:52.5]} 4... h6 {[%clk 0:03:00]} 5. Bxf6 {[%clk 0:02:52.8]}
5... Qxf6 {[%clk 0:03:00.9]} 6. Bd3 {[%clk 0:02:48.7]} 6... Bb7 {[%clk
0:03:00.9]} 7. Nbd2 {[%clk 0:02:41]} 7... d6 {[%clk 0:03:01.2]} 8. O-O {[%clk
0:02:34.7]} 8... Nd7 {[%clk 0:03:01.3]} 9. Qe2 {[%clk 0:02:34.4]} 9... a6 {[%clk
0:03:01.8]} 10. e5 {[%clk 0:02:30.1]} 10... dxe5 {[%clk 0:02:58.3]} 11. dxe5
{[%clk 0:02:30.1]} 11... Qe7 {[%clk 0:02:56.1]} 12. Be4 {[%clk 0:02:28.6]} 12...
O-O-O {[%clk 0:02:18.9]} 13. Bxb7+ {[%clk 0:02:26.3]} 13... Kxb7 {[%clk
0:02:19.8]} 14. a4 {[%clk 0:02:18.7]} 14... Nb8 {[%clk 0:02:17.9]} 15. Qe4+
{[%clk 0:02:15.6]} 15... c6 {[%clk 0:02:08.9]} 16. Nc4 {[%clk 0:02:02.7]} 16...
Qc7 {[%clk 0:02:03.2]} 17. c3 {[%clk 0:01:45.6]} 17... Rd5 {[%clk 0:01:54.8]}
18. b4 {[%clk 0:01:43.8]} 18... Ka7 {[%clk 0:01:47.2]} 19. Ne3 {[%clk 0:01:31]}
19... Rd7 {[%clk 0:01:42.5]} 20. Rfd1 {[%clk 0:01:25.9]} 20... Be7 {[%clk
0:01:41.2]} 21. Rxd7 {[%clk 0:01:22.8]} 21... Qxd7 {[%clk 0:01:39.4]} 22. Nd4
{[%clk 0:01:14.9]} 22... Rd8 {[%clk 0:01:27.5]} 23. h3 {[%clk 0:01:04.3]} 23...
Qb7 {[%clk 0:01:13.7]} 24. b5 {[%clk 0:00:39.4]} 24... c5 {[%clk 0:01:07.5]} 25.
Nc6+ {[%clk 0:00:35.3]} 25... Nxc6 {[%clk 0:01:07.9]} 26. bxc6 {[%clk
0:00:36.2]} 26... Qc7 {[%clk 0:01:08.5]} 27. Nc4 {[%clk 0:00:24.4]} 27... Rd5
{[%clk 0:00:41.9]} 28. Ne3 {[%clk 0:00:24.8]} 28... Rxe5 {[%clk 0:00:40.2]} 29.
Qf3 {[%clk 0:00:22]} 29... Bg5 {[%clk 0:00:40.2]} 30. Nc4 {[%clk 0:00:18.5]}
30... Rd5 {[%clk 0:00:39.7]} 31. Rb1 {[%clk 0:00:18.9]} 31... Rf5 {[%clk
0:00:15]} 32. Qe4 {[%clk 0:00:16.5]} 32... Rf4 {[%clk 0:00:15.4]} 33. Qd3 {[%clk
0:00:12.8]} 33... Rxc4 {[%clk 0:00:15.8]} 34. Qxc4 {[%clk 0:00:12.7]} 34... Qxc6
{[%clk 0:00:16.7]} 35. Rd1 {[%clk 0:00:10.6]} 35... Kb7 {[%clk 0:00:15.7]} 36.
Qb3 {[%clk 0:00:06.5]} 36... Bf6 {[%clk 0:00:11.2]} 37. Qc2 {[%clk 0:00:05.6]}
37... Kc7 {[%clk 0:00:11]} 38. Qd3 {[%clk 0:00:05]} 38... c4 {[%clk 0:00:09.4]}
39. Qc2 {[%clk 0:00:03.1]} 39... Be5 {[%clk 0:00:08.5]} 40. Re1 {[%clk
0:00:03.2]} 40... Bd6 {[%clk 0:00:08.6]} 41. Rb1 {[%clk 0:00:03.5]} 41... Bc5
{[%clk 0:00:08.8]} 42. Rd1 {[%clk 0:00:04]} 42... Be7 {[%clk 0:00:07.4]} 43. Rb1
{[%clk 0:00:04.1]} 43... Bf6 {[%clk 0:00:07.7]} 44. Rc1 {[%clk 0:00:04.7]} 44...
Qc5 {[%clk 0:00:05.9]} 45. Rd1 {[%clk 0:00:04.8]} 45... Qe5 {[%clk 0:00:05.9]}
46. Rc1 {[%clk 0:00:04.5]} 46... Be7 {[%clk 0:00:06.2]} 47. Qd2 {[%clk
0:00:04.3]} 47... Bd6 {[%clk 0:00:06.6]} 48. g3 {[%clk 0:00:04.9]} 48... Qd5
{[%clk 0:00:07.1]} 49. Rd1 {[%clk 0:00:03]} 49... Qxd2 {[%clk 0:00:06.9]} 50.
Rxd2 {[%clk 0:00:03.5]} 50... Be5 {[%clk 0:00:06.5]} 51. Rc2 {[%clk 0:00:03.3]}
51... g5 {[%clk 0:00:06.6]} 52. Kg2 {[%clk 0:00:03.7]} 52... Kc6 {[%clk
0:00:07.2]} 53. Kf3 {[%clk 0:00:04.2]} 53... Kc5 {[%clk 0:00:03.9]} 54. Ke4
{[%clk 0:00:04.2]} 54... Bg7 {[%clk 0:00:04.5]} 55. Ke3 {[%clk 0:00:04.2]} 55...
f5 {[%clk 0:00:04.7]} 56. Kd2 {[%clk 0:00:04.7]} 56... Be5 {[%clk 0:00:02.9]}
57. g4 {[%clk 0:00:04.4]} 57... Bf4+ {[%clk 0:00:02.8]} 58. Ke2 {[%clk
0:00:04.5]} 58... Be5 {[%clk 0:00:03.1]} 59. Kd2 {[%clk 0:00:04.2]} 59... Kc6
{[%clk 0:00:03.2]} 60. Ke3 {[%clk 0:00:03.3]} 60... Bd6 {[%clk 0:00:03]} 61. Kd4
{[%clk 0:00:02.8]} 61... b5 {[%clk 0:00:03.5]} 62. axb5+ {[%clk 0:00:03.2]}
62... axb5 {[%clk 0:00:04.4]} 63. Ra2 {[%clk 0:00:03.8]} 63... Bc7 {[%clk
0:00:02.1]} 64. Ra6+ {[%clk 0:00:02.8]} 64... Bb6+ {[%clk 0:00:02.6]} 65. Ke5
{[%clk 0:00:03.4]} 65... Kb7 {[%clk 0:00:03.5]} 66. Ra2 {[%clk 0:00:03.5]} 66...
f4 {[%clk 0:00:02.6]} 67. Kxe6 {[%clk 0:00:03.3]} 67... Kc6 {[%clk 0:00:03]} 68.
Kf5 {[%clk 0:00:01.6]} 68... Kc5 {[%clk 0:00:03.1]} 69. Rc2 {[%clk 0:00:01.9]}
69... b4 {[%clk 0:00:04]} 70. cxb4+ {[%clk 0:00:02.2]} 70... Kxb4 {[%clk
0:00:04.9]} 71. Kg6 {[%clk 0:00:02.9]} 71... Kb3 {[%clk 0:00:05.2]} 72. Rc1
{[%clk 0:00:03.4]} 72... Bxf2 {[%clk 0:00:05.2]} 73. Kxh6 {[%clk 0:00:03.5]}
73... Be3 {[%clk 0:00:05.8]} 74. Rxc4 {[%clk 0:00:03.5]} 74... Kxc4 {[%clk
0:00:05.8]} 75. Kxg5 {[%clk 0:00:04.1]} 75... f3+ {[%clk 0:00:06.2]} 76. Kf5
{[%clk 0:00:04.6]} 76... f2 {[%clk 0:00:07.1]} 77. Ke4 {[%clk 0:00:04.9]} 77...
f1=Q {[%clk 0:00:07.6]} 78. Kxe3 {[%clk 0:00:05.5]} 78... Qd3+ {[%clk
0:00:07.7]} 0-1

[Event "Early-Titled-Tuesday-Blitz-May-14-2024"]
[Site "Chess.com"]
[Date "2024.05.14"]
[Round "4"]
[White "jasrom"]
[Black "ChadBiryani"]
[Result "0-1"]
[WhiteElo "2334"]
[BlackElo "2542"]
[TimeControl "180+1"]
[EndTime "8:42:38 PDT"]
[Termination "ChadBiryani won on time"]

1. e4 {[%clk 0:03:00.9]} 1... c5 {[%clk 0:02:59.5]} 2. Nc3 {[%clk 0:02:59]} 2...
a6 {[%clk 0:02:59.3]} 3. g3 {[%clk 0:02:58.3]} 3... g6 {[%clk 0:02:59.4]} 4. Bg2
{[%clk 0:02:58.7]} 4... Bg7 {[%clk 0:03:00.1]} 5. Nh3 {[%clk 0:02:58.9]} 5... e6
{[%clk 0:02:58.5]} 6. O-O {[%clk 0:02:59]} 6... Ne7 {[%clk 0:02:57.9]} 7. d3
{[%clk 0:02:57.9]} 7... O-O {[%clk 0:02:56.8]} 8. f4 {[%clk 0:02:55]} 8... Nbc6
{[%clk 0:02:55.2]} 9. Be3 {[%clk 0:02:51.4]} 9... d6 {[%clk 0:02:55.4]} 10. Nf2
{[%clk 0:02:48.2]} 10... b5 {[%clk 0:02:55.1]} 11. Qd2 {[%clk 0:02:37.8]} 11...
Bb7 {[%clk 0:02:53.7]} 12. g4 {[%clk 0:02:30.3]} 12... f5 {[%clk 0:02:45.9]} 13.
h3 {[%clk 0:02:28.7]} 13... Qd7 {[%clk 0:02:34.4]} 14. Rab1 {[%clk 0:02:24.8]}
14... Nd4 {[%clk 0:02:22.3]} 15. Ncd1 {[%clk 0:02:16.6]} 15... Rae8 {[%clk
0:02:16.7]} 16. c3 {[%clk 0:02:15.8]} 16... Ndc6 {[%clk 0:02:17]} 17. Nh1 {[%clk
0:02:14.5]} 17... Kh8 {[%clk 0:02:06.4]} 18. Ndf2 {[%clk 0:02:14.1]} 18... Ng8
{[%clk 0:01:57.8]} 19. Ng3 {[%clk 0:02:10.7]} 19... Nce7 {[%clk 0:01:53.3]} 20.
d4 {[%clk 0:01:58.8]} 20... c4 {[%clk 0:01:41.1]} 21. Rbd1 {[%clk 0:01:49.1]}
21... fxe4 {[%clk 0:01:33.4]} 22. Nfxe4 {[%clk 0:01:46.4]} 22... Nd5 {[%clk
0:01:32.3]} 23. Ng5 {[%clk 0:01:27]} 23... Ngf6 {[%clk 0:01:20.8]} 24. Rde1
{[%clk 0:01:23.4]} 24... h6 {[%clk 0:01:15.5]} 25. N5e4 {[%clk 0:01:20.5]} 25...
Nxe3 {[%clk 0:01:11.2]} 26. Qxe3 {[%clk 0:01:16.7]} 26... Nd5 {[%clk 0:01:10.5]}
27. Qd2 {[%clk 0:01:15.8]} 27... Re7 {[%clk 0:01:06.9]} 28. h4 {[%clk
0:01:10.5]} 28... Ref7 {[%clk 0:01:05.5]} 29. Ne2 {[%clk 0:00:56.8]} 29... Qd8
{[%clk 0:00:51.8]} 30. g5 {[%clk 0:00:55.6]} 30... h5 {[%clk 0:00:51.6]} 31. Rf2
{[%clk 0:00:52]} 31... Ne7 {[%clk 0:00:51.7]} 32. N2g3 {[%clk 0:00:48.7]} 32...
Nf5 {[%clk 0:00:52]} 33. Nxf5 {[%clk 0:00:47.1]} 33... exf5 {[%clk 0:00:48.5]}
34. Ng3 {[%clk 0:00:40.3]} 34... Bxg2 {[%clk 0:00:38.8]} 35. Rxg2 {[%clk
0:00:38.2]} 35... Re8 {[%clk 0:00:35.2]} 36. Rge2 {[%clk 0:00:37.9]} 36... Rfe7
{[%clk 0:00:35.2]} 37. Kf2 {[%clk 0:00:31.3]} 37... Kg8 {[%clk 0:00:33.2]} 38.
Nf1 {[%clk 0:00:23.5]} 38... Kf8 {[%clk 0:00:28.2]} 39. Re3 {[%clk 0:00:23.5]}
39... Qa8 {[%clk 0:00:25.7]} 40. R1e2 {[%clk 0:00:18.1]} 40... Qh1 {[%clk
0:00:25.1]} 41. Rxe7 {[%clk 0:00:12]} 41... Rxe7 {[%clk 0:00:25.2]} 42. Rxe7
{[%clk 0:00:12.3]} 42... Kxe7 {[%clk 0:00:25.2]} 43. Qe3+ {[%clk 0:00:12.3]}
43... Kf7 {[%clk 0:00:19.7]} 44. Qg3 {[%clk 0:00:12.5]} 44... b4 {[%clk
0:00:14]} 45. Ke2 {[%clk 0:00:06.3]} 45... Qe4+ {[%clk 0:00:11.5]} 46. Ne3
{[%clk 0:00:05.2]} 46... bxc3 {[%clk 0:00:07.8]} 47. bxc3 {[%clk 0:00:05]} 47...
Qd3+ {[%clk 0:00:08.5]} 48. Kf2 {[%clk 0:00:05.3]} 48... Qxc3 {[%clk 0:00:08]}
49. Qf3 {[%clk 0:00:05.4]} 49... Qd2+ {[%clk 0:00:06.5]} 50. Kg3 {[%clk
0:00:04.3]} 50... Qxd4 {[%clk 0:00:05.3]} 51. Qb7+ {[%clk 0:00:03]} 51... Kg8
{[%clk 0:00:06]} 52. Qc8+ {[%clk 0:00:02.6]} 52... Kh7 {[%clk 0:00:06.6]} 53.
Nxc4 {[%clk 0:00:02.3]} 53... Qg1+ {[%clk 0:00:05.6]} 54. Kf3 {[%clk 0:00:02.1]}
54... Qg4+ {[%clk 0:00:05.6]} 55. Ke3 {[%clk 0:00:02.4]} 55... Qg3+ {[%clk
0:00:05.8]} 56. Ke2 {[%clk 0:00:01.5]} 56... Qxf4 {[%clk 0:00:04.9]} 57. Qc7
{[%clk 0:00:01.7]} 57... Qg4+ {[%clk 0:00:03.7]} 58. Kd3 {[%clk 0:00:01.8]}
58... Qe4+ {[%clk 0:00:03.8]} 59. Kd2 {[%clk 0:00:02.2]} 59... Qg2+ {[%clk
0:00:03.4]} 60. Kd3 {[%clk 0:00:02.1]} 60... Qg3+ {[%clk 0:00:03.9]} 61. Kd2
{[%clk 0:00:02.2]} 61... Qxh4 {[%clk 0:00:04.6]} 62. Nxd6 {[%clk 0:00:02.1]}
62... Qxg5+ {[%clk 0:00:05.3]} 63. Kd3 {[%clk 0:00:01.7]} 63... Qg3+ {[%clk
0:00:03.3]} 64. Kc4 {[%clk 0:00:01.4]} 64... h4 {[%clk 0:00:03.9]} 65. Kd5
{[%clk 0:00:01]} 65... h3 {[%clk 0:00:03.9]} 66. Qf7 {[%clk 0:00:00.2]} 66...
Qd3+ {[%clk 0:00:03.8]} 0-1

[Event "Early-Titled-Tuesday-Blitz-May-14-2024"]
[Site "Chess.com"]
[Date "2024.05.14"]
[Round "4"]
[White "NCchamp"]
[Black "rodp92"]
[Result "1-0"]
[WhiteElo "2316"]
[BlackElo "2525"]
[TimeControl "180+1"]
[EndTime "8:42:40 PDT"]
[Termination "NCchamp won by checkmate"]

1. d4 {[%clk 0:02:59.5]} 1... Nf6 {[%clk 0:02:59.5]} 2. Bg5 {[%clk 0:02:59]}
2... d5 {[%clk 0:02:58.6]} 3. e3 {[%clk 0:02:58.3]} 3... Ne4 {[%clk 0:02:57.9]}
4. Bf4 {[%clk 0:02:58.3]} 4... g5 {[%clk 0:02:56.5]} 5. Be5 {[%clk 0:02:53.5]}
5... Nf6 {[%clk 0:02:50.3]} 6. Bd3 {[%clk 0:02:41.9]} 6... Nbd7 {[%clk 0:02:50]}
7. Bg3 {[%clk 0:02:42]} 7... c5 {[%clk 0:02:46.9]} 8. c3 {[%clk 0:02:41.2]} 8...
Qb6 {[%clk 0:02:43]} 9. Qc1 {[%clk 0:02:37.4]} 9... Bg7 {[%clk 0:02:34.7]} 10.
Nd2 {[%clk 0:02:27.5]} 10... c4 {[%clk 0:02:21.7]} 11. Bc2 {[%clk 0:02:25.2]}
11... Nh5 {[%clk 0:02:21]} 12. e4 {[%clk 0:02:20.1]} 12... Nxg3 {[%clk
0:02:18.7]} 13. hxg3 {[%clk 0:02:20.1]} 13... e6 {[%clk 0:02:17.2]} 14. Ngf3
{[%clk 0:02:19.2]} 14... h6 {[%clk 0:02:15.3]} 15. e5 {[%clk 0:02:05.3]} 15...
Nb8 {[%clk 0:02:08.8]} 16. Nf1 {[%clk 0:02:04.6]} 16... Bd7 {[%clk 0:02:08]} 17.
Ne3 {[%clk 0:02:04.1]} 17... Nc6 {[%clk 0:02:07.7]} 18. Ng4 {[%clk 0:02:03.5]}
18... O-O-O {[%clk 0:02:07.3]} 19. b4 {[%clk 0:01:56.2]} 19... cxb3 {[%clk
0:01:57.8]} 20. axb3 {[%clk 0:01:56.7]} 20... Kb8 {[%clk 0:01:57.9]} 21. b4
{[%clk 0:01:50.8]} 21... Rc8 {[%clk 0:01:57.2]} 22. Qb2 {[%clk 0:01:43.6]} 22...
Bf8 {[%clk 0:01:52.6]} 23. Nf6 {[%clk 0:01:31.4]} 23... Rc7 {[%clk 0:01:43.1]}
24. O-O {[%clk 0:01:17]} 24... Bc8 {[%clk 0:01:37.2]} 25. Rfb1 {[%clk
0:01:07.7]} 25... Be7 {[%clk 0:01:32.3]} 26. Nh5 {[%clk 0:01:06.1]} 26... g4
{[%clk 0:01:25.2]} 27. Ne1 {[%clk 0:01:05.2]} 27... Rg8 {[%clk 0:01:22.4]} 28.
Nd3 {[%clk 0:00:59.7]} 28... Rg5 {[%clk 0:01:18.3]} 29. Nhf4 {[%clk 0:01:00.4]}
29... h5 {[%clk 0:01:17.9]} 30. Nc5 {[%clk 0:00:49.6]} 30... h4 {[%clk
0:01:04.7]} 31. gxh4 {[%clk 0:00:50.1]} 31... Rg8 {[%clk 0:00:58.2]} 32. g3
{[%clk 0:00:50]} 32... Rh8 {[%clk 0:00:50.3]} 33. Bd3 {[%clk 0:00:45.5]} 33...
Nd8 {[%clk 0:00:44.9]} 34. Qe2 {[%clk 0:00:39.8]} 34... Rc6 {[%clk 0:00:39.1]}
35. b5 {[%clk 0:00:35.3]} 35... Rxc5 {[%clk 0:00:38.8]} 36. dxc5 {[%clk
0:00:34.5]} 36... Bxc5 {[%clk 0:00:38.6]} 37. Ra6 {[%clk 0:00:21.7]} 37... bxa6
{[%clk 0:00:38]} 38. bxa6 {[%clk 0:00:21.7]} 38... Nc6 {[%clk 0:00:37.7]} 39.
Rxb6+ {[%clk 0:00:21.7]} 39... Bxb6 {[%clk 0:00:36.9]} 40. Bb5 {[%clk
0:00:21.9]} 40... Bd7 {[%clk 0:00:34.8]} 41. Nd3 {[%clk 0:00:17.1]} 41... Rg8
{[%clk 0:00:30.9]} 42. Nb4 {[%clk 0:00:16.5]} 42... Kc7 {[%clk 0:00:25.9]} 43.
Bxc6 {[%clk 0:00:15.5]} 43... Bxc6 {[%clk 0:00:26.8]} 44. Nxc6 {[%clk
0:00:15.4]} 44... Kxc6 {[%clk 0:00:27.7]} 45. Qd2 {[%clk 0:00:11.7]} 45... Kb5
{[%clk 0:00:25]} 46. Qf4 {[%clk 0:00:10]} 46... Rc8 {[%clk 0:00:20.2]} 47. Qxf7
{[%clk 0:00:07.1]} 47... Rxc3 {[%clk 0:00:20.8]} 48. Qxe6 {[%clk 0:00:07.6]}
48... Rxg3+ {[%clk 0:00:20.1]} 49. Kf1 {[%clk 0:00:07.4]} 49... Rf3 {[%clk
0:00:20.3]} 50. Qxd5+ {[%clk 0:00:07.5]} 50... Kxa6 {[%clk 0:00:19.7]} 51. Qc4+
{[%clk 0:00:07.5]} 51... Kb7 {[%clk 0:00:19.5]} 52. Qe4+ {[%clk 0:00:06.4]}
52... Kc7 {[%clk 0:00:19.2]} 53. Qxg4 {[%clk 0:00:05.6]} 53... Rxf2+ {[%clk
0:00:18.8]} 54. Ke1 {[%clk 0:00:06]} 54... Rb2 {[%clk 0:00:14.1]} 55. e6 {[%clk
0:00:05.5]} 55... Rb1+ {[%clk 0:00:13.9]} 56. Kd2 {[%clk 0:00:05.5]} 56... Rb5
{[%clk 0:00:13.7]} 57. Qg7+ {[%clk 0:00:04.2]} 57... Kc6 {[%clk 0:00:08.4]} 58.
Qd7+ {[%clk 0:00:04.1]} 58... Kc5 {[%clk 0:00:08.9]} 59. e7 {[%clk 0:00:03.9]}
59... Rb4 {[%clk 0:00:09.3]} 60. e8=Q {[%clk 0:00:03.7]} 60... Rd4+ {[%clk
0:00:07]} 61. Qxd4+ {[%clk 0:00:03.8]} 61... Kxd4 {[%clk 0:00:07.9]} 62. h5
{[%clk 0:00:04.4]} 62... Kc5 {[%clk 0:00:08.8]} 63. h6 {[%clk 0:00:04.8]} 63...
Kd6 {[%clk 0:00:09.7]} 64. h7 {[%clk 0:00:05.1]} 64... Kc5 {[%clk 0:00:10.6]}
65. h8=Q {[%clk 0:00:05.4]} 65... Kb4 {[%clk 0:00:11.5]} 66. Qb2+ {[%clk
0:00:04.9]} 66... Kc5 {[%clk 0:00:12.4]} 67. Qeb5+ {[%clk 0:00:04.8]} 67... Kd6
{[%clk 0:00:13.3]} 68. Qxb6+ {[%clk 0:00:04.9]} 68... axb6 {[%clk 0:00:13.2]}
69. Qxb6+ {[%clk 0:00:05.8]} 69... Kd5 {[%clk 0:00:14.1]} 70. Qb4 {[%clk
0:00:06]} 70... Ke5 {[%clk 0:00:13.8]} 71. Qc4 {[%clk 0:00:06.4]} 71... Kd6
{[%clk 0:00:14.7]} 72. Qb5 {[%clk 0:00:06.7]} 72... Ke6 {[%clk 0:00:14.1]} 73.
Qc5 {[%clk 0:00:06.8]} 73... Kd7 {[%clk 0:00:14]} 74. Qb6 {[%clk 0:00:07]} 74...
Ke7 {[%clk 0:00:14.3]} 75. Kd3 {[%clk 0:00:07.6]} 75... Kd7 {[%clk 0:00:15.2]}
76. Ke4 {[%clk 0:00:08.5]} 76... Ke7 {[%clk 0:00:15.5]} 77. Ke5 {[%clk
0:00:09.4]} 77... Ke8 {[%clk 0:00:15.8]} 78. Qb7 {[%clk 0:00:10.3]} 78... Kf8
{[%clk 0:00:15.9]} 79. Ke6 {[%clk 0:00:11]} 79... Ke8 {[%clk 0:00:16.8]} 80.
Qb8# {[%clk 0:00:11.1]} 1-0